[Event "*** Titled Tuesday 3|2 Blitz (Late)"]
[Site "Chess.com"]
[Date "2016.11.01"]
[Round "9"]
[White "KyronGriffith"]
[Black "spirals5"]
[Result "1-0"]
[WhiteElo "2328"]
[BlackElo "2278"]
[TimeControl "180+2"]
[EndTime "18:56:52 PDT"]
[Termination "KyronGriffith won by resignation"]

1. e4 {[%clk 0:03:02]} 1... c5 {[%clk 0:03:00.6]} 2. Nf3 {[%clk 0:03:02.6]} 2...
d6 {[%clk 0:03:01.5]} 3. d4 {[%clk 0:03:04.1]} 3... cxd4 {[%clk 0:03:02.5]} 4.
Nxd4 {[%clk 0:03:06]} 4... Nf6 {[%clk 0:03:03.3]} 5. Nc3 {[%clk 0:03:07.6]} 5...
a6 {[%clk 0:03:04.5]} 6. Bg5 {[%clk 0:03:08.9]} 6... Nbd7 {[%clk 0:03:05.3]} 7.
f4 {[%clk 0:03:10.2]} 7... b5 {[%clk 0:03:06.2]} 8. Qe2 {[%clk 0:02:46.8]} 8...
Bb7 {[%clk 0:03:05.2]} 9. e5 {[%clk 0:02:40.3]} 9... dxe5 {[%clk 0:02:51.1]} 10.
fxe5 {[%clk 0:02:42.2]} 10... b4 {[%clk 0:02:44.9]} 11. Na4 {[%clk 0:02:31.6]}
11... h6 {[%clk 0:02:36.7]} 12. Bxf6 {[%clk 0:02:23.1]} 12... gxf6 {[%clk
0:02:31.6]} 13. e6 {[%clk 0:02:14.9]} 13... Ne5 {[%clk 0:02:21.4]} 14. O-O-O
{[%clk 0:02:07.4]} 14... Qa5 {[%clk 0:02:13.1]} 15. b3 {[%clk 0:02:02.3]} 15...
O-O-O {[%clk 0:02:06.2]} 16. exf7 {[%clk 0:01:53.9]} 16... h5 {[%clk 0:01:44]}
17. Ne6 {[%clk 0:01:29.3]} 17... Rd6 {[%clk 0:01:39.2]} 18. Rxd6 {[%clk
0:01:25.2]} 18... exd6 {[%clk 0:01:39.8]} 19. Qf2 {[%clk 0:01:15.7]} 19... Bh6+
{[%clk 0:01:14.8]} 20. Kb1 {[%clk 0:01:14.5]} 20... Nxf7 {[%clk 0:00:47.5]} 21.
Qxf6 {[%clk 0:01:12.7]} 21... Qe5 {[%clk 0:00:45.2]} 22. Nb6+ {[%clk 0:01:13.8]}
22... Kb8 {[%clk 0:00:39.7]} 23. Nd7+ {[%clk 0:01:15.7]} 1-0

[Event "*** Titled Tuesday 3|2 Blitz (Late)"]
[Site "Chess.com"]
[Date "2016.11.01"]
[Round "9"]
[White "keisyzrk"]
[Black "PaulfromSPb"]
[Result "0-1"]
[WhiteElo "2237"]
[BlackElo "2513"]
[TimeControl "180+2"]
[EndTime "18:57:22 PDT"]
[Termination "PaulfromSPb won by checkmate"]

1. e4 {[%clk 0:03:02]} 1... c5 {[%clk 0:03:00.3]} 2. Nf3 {[%clk 0:03:02.7]} 2...
d6 {[%clk 0:02:57.7]} 3. d4 {[%clk 0:03:03.4]} 3... cxd4 {[%clk 0:02:58.6]} 4.
Nxd4 {[%clk 0:03:05.3]} 4... Nf6 {[%clk 0:02:59.7]} 5. Nc3 {[%clk 0:03:06.8]}
5... Nc6 {[%clk 0:03:01.2]} 6. Bg5 {[%clk 0:03:06.3]} 6... Qb6 {[%clk
0:03:00.8]} 7. Bxf6 {[%clk 0:02:57.4]} 7... gxf6 {[%clk 0:03:01.3]} 8. Ndb5
{[%clk 0:02:53.2]} 8... a6 {[%clk 0:02:58.3]} 9. Nd5 {[%clk 0:02:52.4]} 9...
Qa5+ {[%clk 0:02:58.1]} 10. b4 {[%clk 0:02:50]} 10... Nxb4 {[%clk 0:02:58.9]}
11. Nbc7+ {[%clk 0:02:50.6]} 11... Kd8 {[%clk 0:02:57.1]} 12. Nxa8 {[%clk
0:02:39.9]} 12... Nxd5+ {[%clk 0:02:49.6]} 13. Qd2 {[%clk 0:02:38.7]} 13... Nc3
{[%clk 0:02:23.7]} 14. Nb6 {[%clk 0:02:27.6]} 14... Bh6 {[%clk 0:02:14.9]} 15.
Qxh6 {[%clk 0:02:22.5]} 15... Nxe4+ {[%clk 0:02:15.4]} 16. Ke2 {[%clk
0:02:18.4]} 16... Qxb6 {[%clk 0:02:10.8]} 17. Qe3 {[%clk 0:02:17.7]} 17... Qb5+
{[%clk 0:01:58.1]} 18. Ke1 {[%clk 0:01:55.9]} 18... Qb4+ {[%clk 0:01:57.5]} 19.
Kd1 {[%clk 0:01:46.2]} 19... Nc3+ {[%clk 0:01:53.7]} 20. Kc1 {[%clk 0:01:45.1]}
20... Bf5 {[%clk 0:01:39.5]} 21. a3 {[%clk 0:01:42.3]} 21... Qa5 {[%clk
0:01:34.6]} 22. Bd3 {[%clk 0:01:35.5]} 22... Bxd3 {[%clk 0:01:33.6]} 23. Qxd3
{[%clk 0:01:35.7]} 23... Rg8 {[%clk 0:01:33.9]} 24. g3 {[%clk 0:01:29.9]} 24...
Rg5 {[%clk 0:01:32.7]} 25. Qxh7 {[%clk 0:01:10.6]} 25... Rd5 {[%clk 0:01:11.7]}
26. Qxf7 {[%clk 0:01:05.1]} 26... Ne2+ {[%clk 0:01:11.5]} 27. Kb2 {[%clk
0:00:48.1]} 27... Qb5+ {[%clk 0:01:11.5]} 28. Ka2 {[%clk 0:00:47.6]} 28... Nc3#
{[%clk 0:01:12.3]} 0-1

[Event "*** Titled Tuesday 3|2 Blitz (Late)"]
[Site "Chess.com"]
[Date "2016.11.01"]
[Round "9"]
[White "Divertissement"]
[Black "brightthunder"]
[Result "0-1"]
[WhiteElo "2348"]
[BlackElo "2533"]
[TimeControl "180+2"]
[EndTime "18:59:21 PDT"]
[Termination "brightthunder won by resignation"]

1. Nf3 {[%clk 0:03:01.9]} 1... c5 {[%clk 0:03:00.4]} 2. c4 {[%clk 0:03:03.4]}
2... Nf6 {[%clk 0:03:00.8]} 3. Nc3 {[%clk 0:03:05]} 3... b6 {[%clk 0:03:01.1]}
4. e3 {[%clk 0:03:04]} 4... g6 {[%clk 0:03:00.5]} 5. d4 {[%clk 0:03:05.4]} 5...
Bg7 {[%clk 0:03:01.6]} 6. d5 {[%clk 0:03:06.4]} 6... O-O {[%clk 0:03:01.3]} 7.
Bd3 {[%clk 0:03:06.6]} 7... d6 {[%clk 0:02:59.5]} 8. h3 {[%clk 0:03:07.2]} 8...
e5 {[%clk 0:02:59.8]} 9. e4 {[%clk 0:03:07]} 9... Na6 {[%clk 0:03:00.2]} 10. O-O
{[%clk 0:03:07.2]} 10... Ne8 {[%clk 0:02:59]} 11. a3 {[%clk 0:03:02.6]} 11... f5
{[%clk 0:02:56.2]} 12. Bg5 {[%clk 0:02:50.8]} 12... Bf6 {[%clk 0:02:19.7]} 13.
Bxf6 {[%clk 0:02:47]} 13... Qxf6 {[%clk 0:02:21.2]} 14. Rb1 {[%clk 0:02:44.2]}
14... f4 {[%clk 0:02:20.6]} 15. Nh2 {[%clk 0:02:44.6]} 15... h5 {[%clk
0:02:16.5]} 16. Be2 {[%clk 0:02:45.3]} 16... Qf7 {[%clk 0:02:14.7]} 17. b4
{[%clk 0:02:43.7]} 17... Nf6 {[%clk 0:02:15]} 18. Nb5 {[%clk 0:02:38.6]} 18...
Rd8 {[%clk 0:02:13.7]} 19. Nf3 {[%clk 0:02:23.1]} 19... Nh7 {[%clk 0:02:01.6]}
20. Nxd6 {[%clk 0:02:14.6]} 20... Rxd6 {[%clk 0:02:01.1]} 21. Nxe5 {[%clk
0:02:16.2]} 21... Qe8 {[%clk 0:01:53.6]} 22. Nc6 {[%clk 0:02:12.2]} 22... Ng5
{[%clk 0:01:31.9]} 23. e5 {[%clk 0:02:11.3]} 23... Rxc6 {[%clk 0:01:16.8]} 24.
dxc6 {[%clk 0:02:12]} 24... Be6 {[%clk 0:01:16.4]} 25. Qc2 {[%clk 0:02:00.3]}
25... f3 {[%clk 0:01:11.1]} 26. Bd3 {[%clk 0:02:01.3]} 26... fxg2 {[%clk
0:01:10.8]} 27. Rfd1 {[%clk 0:01:59.7]} 27... Bxh3 {[%clk 0:00:44.9]} 28. f4
{[%clk 0:01:57.4]} 28... Nf3+ {[%clk 0:00:39.4]} 29. Kf2 {[%clk 0:01:58.5]}
29... Nd4 {[%clk 0:00:31.2]} 30. Bxg6 {[%clk 0:01:49.9]} 30... Nxc2 {[%clk
0:00:29.1]} 31. Bxe8 {[%clk 0:01:50.8]} 31... Rxe8 {[%clk 0:00:30.7]} 32. b5
{[%clk 0:01:41.7]} 32... Nc7 {[%clk 0:00:31.6]} 33. Rb3 {[%clk 0:01:26.3]} 33...
Be6 {[%clk 0:00:28.9]} 34. Rg3+ {[%clk 0:01:26]} 34... Kf7 {[%clk 0:00:28]} 35.
f5 {[%clk 0:01:19.1]} 35... Bxf5 {[%clk 0:00:27.3]} 36. Rf3 {[%clk 0:01:20.6]}
36... Kg6 {[%clk 0:00:26.9]} 37. Rd6+ {[%clk 0:01:18.8]} 37... Ne6 {[%clk
0:00:24.3]} 38. Rg3+ {[%clk 0:01:17.7]} 38... Bg4 {[%clk 0:00:23.7]} 39. c7
{[%clk 0:01:09.7]} 39... Nd4 {[%clk 0:00:23.7]} 40. Rd7 {[%clk 0:01:03.3]} 40...
Rc8 {[%clk 0:00:23.2]} 41. Rxg2 {[%clk 0:00:55.6]} 41... Rxc7 {[%clk 0:00:23.6]}
42. Rxc7 {[%clk 0:00:56.4]} 42... Nxc7 {[%clk 0:00:25.3]} 43. Ke3 {[%clk
0:00:57.7]} 43... Nce6 {[%clk 0:00:25.7]} 44. Ke4 {[%clk 0:00:58.7]} 44... Kg5
{[%clk 0:00:25.3]} 45. Kd5 {[%clk 0:00:57.2]} 45... h4 {[%clk 0:00:26.2]} 46.
Kd6 {[%clk 0:00:56.7]} 46... h3 {[%clk 0:00:26.7]} 47. Rf2 {[%clk 0:00:58.2]}
47... Kh4 {[%clk 0:00:24.4]} 0-1

[Event "*** Titled Tuesday 3|2 Blitz (Late)"]
[Site "Chess.com"]
[Date "2016.11.01"]
[Round "9"]
[White "jcgs1030"]
[Black "Wilsonpalencia"]
[Result "0-1"]
[WhiteElo "2272"]
[BlackElo "2431"]
[TimeControl "180+2"]
[EndTime "18:59:36 PDT"]
[Termination "Wilsonpalencia won by checkmate"]

1. e4 {[%clk 0:03:01.9]} 1... c5 {[%clk 0:02:59.9]} 2. Nf3 {[%clk 0:03:02.4]}
2... d6 {[%clk 0:02:58.4]} 3. d4 {[%clk 0:03:02.3]} 3... cxd4 {[%clk 0:02:59.1]}
4. Nxd4 {[%clk 0:03:03]} 4... Nf6 {[%clk 0:02:59.6]} 5. Nc3 {[%clk 0:03:03.8]}
5... g6 {[%clk 0:02:57.4]} 6. Be3 {[%clk 0:03:02.2]} 6... Bg7 {[%clk 0:02:57]}
7. f3 {[%clk 0:03:03]} 7... O-O {[%clk 0:02:56.9]} 8. Bc4 {[%clk 0:03:01.4]}
8... Nc6 {[%clk 0:02:56.8]} 9. Qd2 {[%clk 0:03:02.1]} 9... Ne5 {[%clk
0:02:51.6]} 10. Bb3 {[%clk 0:03:02.2]} 10... Bd7 {[%clk 0:02:46]} 11. h4 {[%clk
0:02:53.8]} 11... h5 {[%clk 0:02:44.4]} 12. O-O-O {[%clk 0:02:52.8]} 12... Rc8
{[%clk 0:02:43.6]} 13. Kb1 {[%clk 0:02:52.8]} 13... Re8 {[%clk 0:02:34.3]} 14.
g4 {[%clk 0:02:50.9]} 14... hxg4 {[%clk 0:02:29.6]} 15. h5 {[%clk 0:02:51.8]}
15... Nxh5 {[%clk 0:02:29.8]} 16. Rdg1 {[%clk 0:02:53.1]} 16... Qa5 {[%clk
0:02:22.8]} 17. Bh6 {[%clk 0:02:35.8]} 17... Bf6 {[%clk 0:02:18]} 18. f4 {[%clk
0:01:47.8]} 18... Nc4 {[%clk 0:02:11.8]} 19. Bxc4 {[%clk 0:01:48.1]} 19... Rxc4
{[%clk 0:02:10.2]} 20. e5 {[%clk 0:01:48.8]} 20... Bh8 {[%clk 0:02:07.6]} 21.
Nb3 {[%clk 0:01:42.3]} 21... Qc7 {[%clk 0:02:04.9]} 22. Nd5 {[%clk 0:01:42]}
22... Qc8 {[%clk 0:02:00.6]} 23. c3 {[%clk 0:00:56.6]} 23... Bf5+ {[%clk
0:01:45.7]} 24. Ka1 {[%clk 0:00:56.7]} 24... Ra4 {[%clk 0:01:30.4]} 25. Ne3
{[%clk 0:00:49.3]} 25... Be4 {[%clk 0:01:27.9]} 26. Rh4 {[%clk 0:00:44.2]} 26...
dxe5 {[%clk 0:01:25.9]} 27. Rgxg4 {[%clk 0:00:40.3]} 27... exf4 {[%clk
0:01:16.9]} 28. Bxf4 {[%clk 0:00:41]} 28... Bf3 {[%clk 0:01:13]} 29. Rxh5 {[%clk
0:00:35.4]} 29... Bxg4 {[%clk 0:01:03]} 30. Rxh8+ {[%clk 0:00:35.2]} 30... Kxh8
{[%clk 0:01:00]} 31. Qh2+ {[%clk 0:00:36.2]} 31... Bh5 {[%clk 0:00:55.8]} 32.
Nd4 {[%clk 0:00:33.1]} 32... f6 {[%clk 0:00:37.8]} 33. Ndf5 {[%clk 0:00:23.3]}
33... e5 {[%clk 0:00:35.1]} 34. Qh4 {[%clk 0:00:20.6]} 34... Qe6 {[%clk
0:00:31.9]} 35. Bxe5 {[%clk 0:00:21]} 35... Qxa2# {[%clk 0:00:29]} 0-1

[Event "*** Titled Tuesday 3|2 Blitz (Late)"]
[Site "Chess.com"]
[Date "2016.11.01"]
[Round "9"]
[White "MFBerna"]
[Black "nonscitis"]
[Result "1-0"]
[WhiteElo "2197"]
[BlackElo "2307"]
[TimeControl "180+2"]
[EndTime "18:59:58 PDT"]
[Termination "MFBerna won by checkmate"]

1. e4 {[%clk 0:03:02]} 1... c5 {[%clk 0:03:00.6]} 2. Nf3 {[%clk 0:03:03.4]} 2...
d6 {[%clk 0:03:00.9]} 3. d4 {[%clk 0:03:04.4]} 3... cxd4 {[%clk 0:03:01.7]} 4.
Nxd4 {[%clk 0:03:06.3]} 4... Nf6 {[%clk 0:03:02.8]} 5. Nc3 {[%clk 0:03:07.7]}
5... a6 {[%clk 0:03:03.6]} 6. Be2 {[%clk 0:03:05.9]} 6... Nc6 {[%clk 0:02:56.8]}
7. Be3 {[%clk 0:03:05.1]} 7... Nxd4 {[%clk 0:02:55.8]} 8. Qxd4 {[%clk
0:03:03.3]} 8... e5 {[%clk 0:02:57.7]} 9. Qd2 {[%clk 0:03:04.2]} 9... Be6 {[%clk
0:02:58.1]} 10. O-O {[%clk 0:03:03.6]} 10... Be7 {[%clk 0:02:59]} 11. f4 {[%clk
0:03:04.8]} 11... Rc8 {[%clk 0:02:45.8]} 12. Rad1 {[%clk 0:03:01.6]} 12... O-O
{[%clk 0:02:45.6]} 13. Kh1 {[%clk 0:02:48.4]} 13... Rxc3 {[%clk 0:02:15.3]} 14.
Qxc3 {[%clk 0:02:48.9]} 14... Nxe4 {[%clk 0:02:15.3]} 15. Qb4 {[%clk 0:02:46.4]}
15... exf4 {[%clk 0:01:25.7]} 16. Bxf4 {[%clk 0:02:37]} 16... Nc5 {[%clk
0:01:25.5]} 17. Bc4 {[%clk 0:02:24.4]} 17... a5 {[%clk 0:01:17]} 18. Qc3 {[%clk
0:02:22.6]} 18... Bf6 {[%clk 0:01:08.2]} 19. Qe3 {[%clk 0:01:29.8]} 19... Bxc4
{[%clk 0:01:06.5]} 20. Rxd6 {[%clk 0:01:23.9]} 20... Nd7 {[%clk 0:00:44]} 21.
Rfd1 {[%clk 0:01:20.6]} 21... Bb5 {[%clk 0:00:40.2]} 22. Qd2 {[%clk 0:01:09.6]}
22... Re8 {[%clk 0:00:37]} 23. h3 {[%clk 0:01:01.3]} 23... b6 {[%clk 0:00:21.1]}
24. c4 {[%clk 0:00:54.9]} 24... Bxc4 {[%clk 0:00:15.1]} 25. Rxd7 {[%clk
0:00:55.2]} 25... Qc8 {[%clk 0:00:15.6]} 26. Rc7 {[%clk 0:00:51.1]} 26... Qa6
{[%clk 0:00:14.9]} 27. Qd7 {[%clk 0:00:45]} 27... Bb5 {[%clk 0:00:15.3]} 28.
Qxf7+ {[%clk 0:00:43.3]} 28... Kh8 {[%clk 0:00:15]} 29. Bh6 {[%clk 0:00:31.6]}
29... Rg8 {[%clk 0:00:15.6]} 30. Rdc1 {[%clk 0:00:13.7]} 30... Qa8 {[%clk
0:00:14.9]} 31. Bf4 {[%clk 0:00:10.4]} 31... Be8 {[%clk 0:00:15.4]} 32. Qe6
{[%clk 0:00:08.8]} 32... Bg6 {[%clk 0:00:15.4]} 33. Be5 {[%clk 0:00:08.4]} 33...
Bxe5 {[%clk 0:00:15.4]} 34. Qxe5 {[%clk 0:00:08.8]} 34... Qd8 {[%clk 0:00:12.9]}
35. Re7 {[%clk 0:00:06.9]} 35... b5 {[%clk 0:00:11.9]} 36. Re1 {[%clk
0:00:08.1]} 36... b4 {[%clk 0:00:11.9]} 37. Rc1 {[%clk 0:00:09]} 37... Qd2
{[%clk 0:00:11.5]} 38. Rcc7 {[%clk 0:00:07.4]} 38... Qd1+ {[%clk 0:00:11.3]} 39.
Kh2 {[%clk 0:00:08.6]} 39... Qd2 {[%clk 0:00:11.7]} 40. Rxg7 {[%clk 0:00:06.2]}
40... Qd6 {[%clk 0:00:07.9]} 41. Rxh7# {[%clk 0:00:06.1]} 1-0

[Event "*** Titled Tuesday 3|2 Blitz (Late)"]
[Site "Chess.com"]
[Date "2016.11.01"]
[Round "9"]
[White "AlexanderL"]
[Black "wonderfultime"]
[Result "0-1"]
[WhiteElo "2586"]
[BlackElo "2709"]
[TimeControl "180+2"]
[EndTime "19:00:08 PDT"]
[Termination "wonderfultime won by checkmate"]

1. d4 {[%clk 0:03:01.9]} 1... d5 {[%clk 0:02:28.1]} 2. c4 {[%clk 0:03:01.7]}
2... c6 {[%clk 0:02:29.4]} 3. cxd5 {[%clk 0:03:00.4]} 3... cxd5 {[%clk
0:02:30.1]} 4. Bf4 {[%clk 0:03:01.5]} 4... Nf6 {[%clk 0:02:31.4]} 5. e3 {[%clk
0:03:02.7]} 5... a6 {[%clk 0:02:31.2]} 6. Nc3 {[%clk 0:03:03.5]} 6... Bf5 {[%clk
0:02:30.1]} 7. Qb3 {[%clk 0:03:00.6]} 7... b5 {[%clk 0:01:31.7]} 8. a4 {[%clk
0:02:52.6]} 8... b4 {[%clk 0:01:20.8]} 9. Qxb4 {[%clk 0:02:53.8]} 9... e5 {[%clk
0:01:20.2]} 10. Qb7 {[%clk 0:02:54.9]} 10... exf4 {[%clk 0:01:20.3]} 11. Qxa8
{[%clk 0:02:54]} 11... fxe3 {[%clk 0:01:21.5]} 12. fxe3 {[%clk 0:02:46.5]} 12...
Bd6 {[%clk 0:01:21.7]} 13. Qb7 {[%clk 0:02:37.2]} 13... O-O {[%clk 0:01:21.2]}
14. O-O-O {[%clk 0:02:35]} 14... Qa5 {[%clk 0:01:13.2]} 15. Bd3 {[%clk
0:02:25.9]} 15... Bc8 {[%clk 0:01:02.1]} 16. Qb3 {[%clk 0:02:23.6]} 16... Nc6
{[%clk 0:01:03]} 17. Nge2 {[%clk 0:02:07.9]} 17... Nb4 {[%clk 0:01:01.6]} 18.
Ng3 {[%clk 0:01:42.4]} 18... Bg4 {[%clk 0:00:53.8]} 19. Be2 {[%clk 0:01:10.5]}
19... Rb8 {[%clk 0:00:51.7]} 20. Bxg4 {[%clk 0:01:07.4]} 20... Nd3+ {[%clk
0:00:48.5]} 21. Rxd3 {[%clk 0:01:08.3]} 21... Rxb3 {[%clk 0:00:49.3]} 22. Bd1
{[%clk 0:01:09.5]} 22... Rb8 {[%clk 0:00:47.5]} 23. Bc2 {[%clk 0:01:04.8]} 23...
g6 {[%clk 0:00:28.4]} 24. Re1 {[%clk 0:00:43]} 24... Qb4 {[%clk 0:00:27.8]} 25.
Kd2 {[%clk 0:00:28.7]} 25... Ne4+ {[%clk 0:00:26.3]} 26. Kd1 {[%clk 0:00:18.7]}
26... Bxg3 {[%clk 0:00:23.2]} 27. hxg3 {[%clk 0:00:18.6]} 27... Nf2+ {[%clk
0:00:19.8]} 28. Ke2 {[%clk 0:00:19.1]} 28... Nxd3 {[%clk 0:00:20.6]} 29. Kxd3
{[%clk 0:00:20.5]} 29... Qc4+ {[%clk 0:00:21.8]} 30. Kd2 {[%clk 0:00:21.9]}
30... Rxb2 {[%clk 0:00:23.7]} 31. Rc1 {[%clk 0:00:20.5]} 31... Kg7 {[%clk
0:00:20.4]} 32. Nd1 {[%clk 0:00:16.6]} 32... Qb4+ {[%clk 0:00:18.2]} 33. Kd3
{[%clk 0:00:13.1]} 33... Ra2 {[%clk 0:00:19.1]} 34. Nc3 {[%clk 0:00:11.7]} 34...
Ra3 {[%clk 0:00:20.4]} 35. Bd1 {[%clk 0:00:12.1]} 35... h5 {[%clk 0:00:19.7]}
36. Rc2 {[%clk 0:00:07.6]} 36... Qb8 {[%clk 0:00:19.6]} 37. Kd2 {[%clk
0:00:08.2]} 37... Qxg3 {[%clk 0:00:20.6]} 38. Bf3 {[%clk 0:00:07.7]} 38... Qf2+
{[%clk 0:00:20.4]} 39. Kd3 {[%clk 0:00:08.8]} 39... Qf1+ {[%clk 0:00:21.8]} 40.
Be2 {[%clk 0:00:10.2]} 40... Qxg2 {[%clk 0:00:21.6]} 41. e4 {[%clk 0:00:08.5]}
41... Qxe4+ {[%clk 0:00:20.8]} 42. Kd2 {[%clk 0:00:09.4]} 42... Qxd4+ {[%clk
0:00:22.2]} 43. Bd3 {[%clk 0:00:10.5]} 43... h4 {[%clk 0:00:23.7]} 44. Rc1
{[%clk 0:00:09.1]} 44... h3 {[%clk 0:00:24.8]} 45. Kc2 {[%clk 0:00:08.9]} 45...
Qxc3+ {[%clk 0:00:25.1]} 46. Kb1 {[%clk 0:00:10.8]} 46... Ra1# {[%clk
0:00:25.8]} 0-1

[Event "*** Titled Tuesday 3|2 Blitz (Late)"]
[Site "Chess.com"]
[Date "2016.11.01"]
[Round "9"]
[White "Quiet_Desperation"]
[Black "attack2mateU"]
[Result "0-1"]
[WhiteElo "2283"]
[BlackElo "2410"]
[TimeControl "180+2"]
[EndTime "19:00:20 PDT"]
[Termination "attack2mateU won by resignation"]

1. e4 {[%clk 0:03:01.9]} 1... c5 {[%clk 0:03:00.4]} 2. Nf3 {[%clk 0:03:01.8]}
2... d6 {[%clk 0:03:01.4]} 3. d4 {[%clk 0:03:02.9]} 3... cxd4 {[%clk 0:03:02.1]}
4. Nxd4 {[%clk 0:03:04.3]} 4... Nf6 {[%clk 0:03:00.1]} 5. Nc3 {[%clk 0:03:05.6]}
5... a6 {[%clk 0:03:00.4]} 6. Be3 {[%clk 0:03:06.5]} 6... e6 {[%clk 0:03:01.1]}
7. f3 {[%clk 0:03:07]} 7... b5 {[%clk 0:03:01.8]} 8. Qd2 {[%clk 0:03:08.4]} 8...
b4 {[%clk 0:02:55.1]} 9. Nce2 {[%clk 0:03:09.1]} 9... e5 {[%clk 0:02:55]} 10.
Nb3 {[%clk 0:03:06.5]} 10... Nc6 {[%clk 0:02:54.5]} 11. O-O-O {[%clk 0:03:05.1]}
11... a5 {[%clk 0:02:34.6]} 12. Kb1 {[%clk 0:03:05.9]} 12... a4 {[%clk
0:02:35.1]} 13. Nbc1 {[%clk 0:03:07.2]} 13... Be6 {[%clk 0:02:31.4]} 14. g4
{[%clk 0:03:03.6]} 14... Qa5 {[%clk 0:02:29]} 15. g5 {[%clk 0:03:00.6]} 15...
Nd7 {[%clk 0:02:29.2]} 16. f4 {[%clk 0:02:56.5]} 16... exf4 {[%clk 0:02:20.9]}
17. Nxf4 {[%clk 0:02:57.2]} 17... Be7 {[%clk 0:01:57.9]} 18. Nxe6 {[%clk
0:02:56.2]} 18... fxe6 {[%clk 0:01:58.7]} 19. Bc4 {[%clk 0:02:48.6]} 19... Nd8
{[%clk 0:01:46]} 20. Rhf1 {[%clk 0:02:39.2]} 20... Ne5 {[%clk 0:01:28.6]} 21.
Be2 {[%clk 0:02:35.7]} 21... Ndf7 {[%clk 0:01:29.1]} 22. h4 {[%clk 0:02:19.2]}
22... O-O {[%clk 0:01:28.6]} 23. h5 {[%clk 0:02:12.4]} 23... Nd8 {[%clk
0:01:26.5]} 24. Bd4 {[%clk 0:02:08.4]} 24... Ndc6 {[%clk 0:01:26.2]} 25. g6
{[%clk 0:02:03.9]} 25... h6 {[%clk 0:01:24.5]} 26. Be3 {[%clk 0:02:04.1]} 26...
Bf6 {[%clk 0:01:03.5]} 27. Bxh6 {[%clk 0:01:55.4]} 27... gxh6 {[%clk 0:01:03.5]}
28. Qxh6 {[%clk 0:01:55.3]} 28... Qa7 {[%clk 0:01:02.8]} 29. Rxd6 {[%clk
0:01:51.6]} 29... Qg7 {[%clk 0:01:00.7]} 30. Qe3 {[%clk 0:01:47]} 30... Be7
{[%clk 0:00:56.6]} 31. Rxe6 {[%clk 0:01:40.9]} 31... Rxf1 {[%clk 0:00:54]} 32.
Bxf1 {[%clk 0:01:42.1]} 32... Rf8 {[%clk 0:00:54.1]} 33. h6 {[%clk 0:01:32.2]}
33... Ng4 {[%clk 0:00:54.7]} 34. Qb6 {[%clk 0:00:56.5]} 34... Qd4 {[%clk
0:00:35.8]} 35. Qxc6 {[%clk 0:00:46.4]} 35... a3 {[%clk 0:00:34.7]} 36. c3
{[%clk 0:00:29.6]} 36... Qd2 {[%clk 0:00:25.1]} 37. h7+ {[%clk 0:00:21.8]} 37...
Kh8 {[%clk 0:00:25.2]} 38. g7+ {[%clk 0:00:23.4]} 38... Kxg7 {[%clk 0:00:26.1]}
39. Rxe7+ {[%clk 0:00:24.8]} 39... Kh8 {[%clk 0:00:27.4]} 40. bxa3 {[%clk
0:00:16.4]} 40... bxc3 {[%clk 0:00:28.4]} 41. Rb7 {[%clk 0:00:15.6]} 41... Ne3
{[%clk 0:00:07.6]} 42. Bd3 {[%clk 0:00:15]} 42... c2+ {[%clk 0:00:04.6]} 43.
Bxc2 {[%clk 0:00:15.4]} 43... Qd4 {[%clk 0:00:05.5]} 44. Qc7 {[%clk 0:00:12.3]}
44... Nc4 {[%clk 0:00:03.9]} 45. Nd3 {[%clk 0:00:08.1]} 45... Rf1+ {[%clk
0:00:04.2]} 46. Bd1 {[%clk 0:00:07.6]} 46... Qxd3+ {[%clk 0:00:03.2]} 47. Ka1
{[%clk 0:00:07.7]} 47... Qc3+ {[%clk 0:00:04.4]} 0-1